[Event "Titled Tuesday Blitz November 15 Late 2022"]
[White "Haszon, David"]
[Black "Aggelis, Nikolaos"]
[WhiteFideId "733610"]
[BlackFideId "4213220"]
[WhiteElo "2211"]
[BlackElo "2189"]
[Result "0-1"]
[Round "03"]
[TimeControl "180+1"]
[Date "2022.11.16"]
[WhiteClock "0:00:22"]
[BlackClock "0:00:32"]

1. e4 {[%clk 0:03:00]}  c5 {[%clk 0:02:59]} 2. c3 {[%clk 0:02:59]}  Nf6 {[%clk 0:02:58]} 3. e5 {[%clk 0:02:58]}  Nd5 {[%clk 0:02:58]} 4. d4 {[%clk 0:02:58]}  cxd4 {[%clk 0:02:59]} 5. Nf3 {[%clk 0:02:56]}  Nc6 {[%clk 0:02:59]} 6. cxd4 {[%clk 0:02:55]}  d6 {[%clk 0:02:59]} 7. Nc3 {[%clk 0:02:51]}  dxe5 {[%clk 0:02:58]} 8. Nxe5 {[%clk 0:02:45]}  Nxc3 {[%clk 0:02:49]} 9. bxc3 {[%clk 0:02:14]}  Nxe5 {[%clk 0:02:45]} 10. dxe5 {[%clk 0:02:15]}  Qxd1+ {[%clk 0:02:44]} 11. Kxd1 {[%clk 0:02:15]}  g6 {[%clk 0:02:36]} 12. f4 {[%clk 0:02:08]}  Bd7 {[%clk 0:02:30]} 13. a4 {[%clk 0:01:59]}  O-O-O {[%clk 0:02:24]} 14. Kc2 {[%clk 0:01:56]}  Bg7 {[%clk 0:02:21]} 15. Be3 {[%clk 0:01:46]}  f6 {[%clk 0:02:11]} 16. exf6 {[%clk 0:01:40]}  Bxf6 {[%clk 0:02:06]} 17. Bxa7 {[%clk 0:01:41]}  Bf5+ {[%clk 0:02:00]} 18. Kb3 {[%clk 0:01:40]}  Rd2 {[%clk 0:01:56]} 19. h3 {[%clk 0:01:23]}  Rhd8 {[%clk 0:01:52]} 20. g4 {[%clk 0:01:16]}  Be4 {[%clk 0:01:46]} 21. Rg1 {[%clk 0:01:12]}  Rc2 {[%clk 0:01:46]} 22. Rg3 {[%clk 0:01:06]}  Rdd2 {[%clk 0:01:36]} 23. Re1 {[%clk 0:00:43]}  Bd5+ {[%clk 0:01:29]} 24. Kb4 {[%clk 0:00:41]}  Rb2+ {[%clk 0:01:23]} 25. Kc5 {[%clk 0:00:38]}  e6 {[%clk 0:01:18]} 26. Bb5 {[%clk 0:00:35]}  Be7+ {[%clk 0:00:54]} 27. Kb6 {[%clk 0:00:34]}  Bc4 {[%clk 0:00:49]} 28. Re5 {[%clk 0:00:26]}  Rd6+ {[%clk 0:00:37]} 29. Ka5 {[%clk 0:00:22]}  Bd8+ {[%clk 0:00:32]} 0-1


[Site "https://www.chess.com"]

[Event "Titled Tuesday Blitz November 15 Late 2022"]
[White "Hnydiuk, Aleksander"]
[Black "Silvestre, Christian"]
[WhiteFideId "1109057"]
[BlackFideId "30956269"]
[WhiteElo "2374"]
[BlackElo "2324"]
[Result "0-1"]
[Round "03"]
[TimeControl "180+1"]
[Date "2022.11.16"]
[WhiteClock "0:00:01"]
[BlackClock "0:00:12"]

1. e4 {[%clk 0:02:49]}  c6 {[%clk 0:02:59]} 2. d4 {[%clk 0:02:45]}  d5 {[%clk 0:02:59]} 3. f3 {[%clk 0:02:40]}  e6 {[%clk 0:02:53]} 4. Nc3 {[%clk 0:02:40]}  Qb6 {[%clk 0:02:51]} 5. a3 {[%clk 0:02:38]}  Nf6 {[%clk 0:02:47]} 6. Bf4 {[%clk 0:02:26]}  Be7 {[%clk 0:02:38]} 7. Nge2 {[%clk 0:02:05]}  O-O {[%clk 0:02:33]} 8. g4 {[%clk 0:01:57]}  c5 {[%clk 0:02:32]} 9. e5 {[%clk 0:01:52]}  Nfd7 {[%clk 0:02:29]} 10. Na4 {[%clk 0:01:34]}  Qc7 {[%clk 0:02:27]} 11. Qd2 {[%clk 0:01:20]}  Nc6 {[%clk 0:02:22]} 12. c3 {[%clk 0:00:57]}  c4 {[%clk 0:02:19]} 13. b4 {[%clk 0:00:35]}  cxb3 {[%clk 0:02:14]} 14. Nc1 {[%clk 0:00:29]}  Na5 {[%clk 0:02:07]} 15. Qb2 {[%clk 0:00:25]}  Nb6 {[%clk 0:02:00]} 16. Nxb6 {[%clk 0:00:21]}  Qxb6 {[%clk 0:01:59]} 17. Rb1 {[%clk 0:00:19]}  f6 {[%clk 0:01:15]} 18. Nxb3 {[%clk 0:00:18]}  fxe5 {[%clk 0:01:13]} 19. Bxe5 {[%clk 0:00:19]}  Rxf3 {[%clk 0:01:02]} 20. Be2 {[%clk 0:00:19]}  Nc4 {[%clk 0:00:55]} 21. Bxc4 {[%clk 0:00:16]}  dxc4 {[%clk 0:00:54]} 22. Nd2 {[%clk 0:00:16]}  Bh4+ {[%clk 0:00:39]} 23. Kd1 {[%clk 0:00:14]}  Qc6 {[%clk 0:00:32]} 24. Qb5 {[%clk 0:00:06]}  Rxc3 {[%clk 0:00:16]} 25. Qxc6 {[%clk 0:00:06]}  bxc6 {[%clk 0:00:17]} 26. Rf1 {[%clk 0:00:05]}  Bd7 {[%clk 0:00:14]} 27. Ne4 {[%clk 0:00:04]}  Rd3+ {[%clk 0:00:14]} 28. Ke2 {[%clk 0:00:04]}  Be8 {[%clk 0:00:13]} 29. Nc5 {[%clk 0:00:03]}  Bg6 {[%clk 0:00:11]} 30. Nxd3 {[%clk 0:00:01]}  Bxd3+ {[%clk 0:00:11]} 31. Ke3 {[%clk 0:00:02]}  Bxb1 {[%clk 0:00:11]} 32. Rxb1 {[%clk 0:00:01]}  Bg5+ {[%clk 0:00:12]} 0-1


[Site "https://www.chess.com"]

[Event "Titled Tuesday Blitz November 15 Late 2022"]
[White "Horcajuelo Rocamora, Martin"]
[Black "Mendonca, Mateus Nakajo"]
[WhiteFideId "24573027"]
[BlackFideId "2110954"]
[WhiteElo "2094"]
[BlackElo "2310"]
[Result "0-1"]
[Round "03"]
[TimeControl "180+1"]
[Date "2022.11.16"]
[WhiteClock "0:02:23"]
[BlackClock "0:01:19"]

1. e4 {[%clk 0:03:00]}  c5 {[%clk 0:02:59]} 2. Nf3 {[%clk 0:02:59]}  e6 {[%clk 0:02:59]} 3. d4 {[%clk 0:02:59]}  cxd4 {[%clk 0:03:00]} 4. Nxd4 {[%clk 0:03:00]}  Nc6 {[%clk 0:03:00]} 5. g3 {[%clk 0:02:59]}  Qc7 {[%clk 0:02:59]} 6. Bg2 {[%clk 0:02:59]}  Nf6 {[%clk 0:02:58]} 7. O-O {[%clk 0:02:58]}  Nxd4 {[%clk 0:02:58]} 8. Qxd4 {[%clk 0:02:58]}  Bc5 {[%clk 0:02:58]} 9. Qd3 {[%clk 0:02:58]}  O-O {[%clk 0:02:52]} 10. c4 {[%clk 0:02:58]}  d6 {[%clk 0:02:44]} 11. a3 {[%clk 0:02:51]}  a6 {[%clk 0:02:37]} 12. b4 {[%clk 0:02:51]}  Ba7 {[%clk 0:02:35]} 13. Bb2 {[%clk 0:02:50]}  e5 {[%clk 0:02:35]} 14. Nc3 {[%clk 0:02:43]}  Be6 {[%clk 0:02:16]} 15. Nd5 {[%clk 0:02:40]}  Bxd5 {[%clk 0:02:15]} 16. cxd5 {[%clk 0:02:41]}  Rac8 {[%clk 0:02:08]} 17. Bh3 {[%clk 0:02:36]}  Qc2 {[%clk 0:01:56]} 18. Qxc2 {[%clk 0:02:36]}  Rxc2 {[%clk 0:01:56]} 19. Rab1 {[%clk 0:02:34]}  Nxe4 {[%clk 0:01:50]} 20. Bf5 {[%clk 0:02:34]}  Rxf2 {[%clk 0:01:47]} 21. Rxf2 {[%clk 0:02:33]}  Nxf2 {[%clk 0:01:45]} 22. Kg2 {[%clk 0:02:33]}  g6 {[%clk 0:01:38]} 23. Bd7 {[%clk 0:02:32]}  Rd8 {[%clk 0:01:35]} 24. Ba4 {[%clk 0:02:31]}  Nd3 {[%clk 0:01:30]} 25. Bc3 {[%clk 0:02:30]}  Rc8 {[%clk 0:01:28]} 26. Bd2 {[%clk 0:02:29]}  e4 {[%clk 0:01:22]} 27. Rd1 {[%clk 0:02:23]}  Nb2 {[%clk 0:01:19]} 0-1


[Site "https://www.chess.com"]

[Event "Titled Tuesday Blitz November 15 Late 2022"]
[White "Hristodoulou, Panagiotis"]
[Black "Kleinman, Michael"]
[WhiteFideId "4214340"]
[BlackFideId "2609479"]
[WhiteElo "2272"]
[BlackElo "2287"]
[Result "1-0"]
[Round "03"]
[TimeControl "180+1"]
[Date "2022.11.16"]
[WhiteClock "0:01:42"]
[BlackClock "0:00:05"]

1. e4 {[%clk 0:02:57]}  c6 {[%clk 0:02:59]} 2. d4 {[%clk 0:02:56]}  d5 {[%clk 0:03:00]} 3. e5 {[%clk 0:02:56]}  Bf5 {[%clk 0:02:59]} 4. Nf3 {[%clk 0:02:54]}  e6 {[%clk 0:03:00]} 5. Be2 {[%clk 0:02:54]}  Ne7 {[%clk 0:02:59]} 6. O-O {[%clk 0:02:53]}  c5 {[%clk 0:02:59]} 7. c4 {[%clk 0:02:52]}  Nbc6 {[%clk 0:02:58]} 8. dxc5 {[%clk 0:02:41]}  d4 {[%clk 0:02:54]} 9. Bd3 {[%clk 0:02:35]}  Bxd3 {[%clk 0:02:34]} 10. Qxd3 {[%clk 0:02:36]}  Ng6 {[%clk 0:02:35]} 11. Re1 {[%clk 0:02:29]}  Bxc5 {[%clk 0:02:34]} 12. a3 {[%clk 0:02:28]}  a5 {[%clk 0:02:33]} 13. Nbd2 {[%clk 0:02:24]}  O-O {[%clk 0:02:30]} 14. Ne4 {[%clk 0:02:18]}  Be7 {[%clk 0:02:01]} 15. Ng3 {[%clk 0:02:17]}  Qc7 {[%clk 0:01:56]} 16. Qe4 {[%clk 0:02:16]}  Rad8 {[%clk 0:01:51]} 17. Bd2 {[%clk 0:02:13]}  Qb6 {[%clk 0:01:38]} 18. h4 {[%clk 0:02:10]}  Rfe8 {[%clk 0:01:04]} 19. h5 {[%clk 0:02:09]}  Nf8 {[%clk 0:01:03]} 20. Qg4 {[%clk 0:02:09]}  Qxb2 {[%clk 0:00:53]} 21. Rab1 {[%clk 0:02:01]}  Qc2 {[%clk 0:00:52]} 22. Rxb7 {[%clk 0:01:59]}  Rb8 {[%clk 0:00:44]} 23. Rc7 {[%clk 0:01:58]}  Rb6 {[%clk 0:00:38]} 24. Ne4 {[%clk 0:01:52]}  Bd8 {[%clk 0:00:32]} 25. Rc8 {[%clk 0:01:46]}  Na7 {[%clk 0:00:10]} 26. Ra8 {[%clk 0:01:43]}  Rb7 {[%clk 0:00:05]} 27. Nd6 {[%clk 0:01:42]} 1-0


[Site "https://www.chess.com"]

[Event "Titled Tuesday Blitz November 15 Late 2022"]
[White "Ivic, Velimir"]
[Black "Souleidis, Georgios"]
[WhiteFideId "950122"]
[BlackFideId "4206827"]
[WhiteElo "2625"]
[BlackElo "2401"]
[Result "1-0"]
[Round "03"]
[TimeControl "180+1"]
[Date "2022.11.16"]
[WhiteClock "0:00:03"]
[BlackClock "0:00:01"]

1. d4 {[%clk 0:03:00]}  Nf6 {[%clk 0:02:52]} 2. c4 {[%clk 0:03:01]}  g6 {[%clk 0:02:53]} 3. Nc3 {[%clk 0:03:01]}  Bg7 {[%clk 0:02:53]} 4. e4 {[%clk 0:03:01]}  d6 {[%clk 0:02:54]} 5. Be2 {[%clk 0:03:02]}  O-O {[%clk 0:02:54]} 6. Be3 {[%clk 0:03:02]}  e5 {[%clk 0:02:54]} 7. d5 {[%clk 0:03:02]}  Na6 {[%clk 0:02:55]} 8. h4 {[%clk 0:03:00]}  Nc5 {[%clk 0:02:50]} 9. Qc2 {[%clk 0:03:00]}  a5 {[%clk 0:02:49]} 10. h5 {[%clk 0:02:57]}  Ng4 {[%clk 0:02:45]} 11. Bxg4 {[%clk 0:02:45]}  Bxg4 {[%clk 0:02:45]} 12. f3 {[%clk 0:02:46]}  Bd7 {[%clk 0:02:44]} 13. Nge2 {[%clk 0:02:30]}  f5 {[%clk 0:02:33]} 14. hxg6 {[%clk 0:02:23]}  hxg6 {[%clk 0:02:33]} 15. Qd2 {[%clk 0:02:19]}  fxe4 {[%clk 0:02:24]} 16. Bxc5 {[%clk 0:02:17]}  exf3 {[%clk 0:02:16]} 17. gxf3 {[%clk 0:02:10]}  dxc5 {[%clk 0:02:16]} 18. O-O-O {[%clk 0:02:09]}  Rxf3 {[%clk 0:02:08]} 19. Ne4 {[%clk 0:02:07]}  b6 {[%clk 0:01:48]} 20. N2g3 {[%clk 0:01:52]}  Qf8 {[%clk 0:01:40]} 21. Qh2 {[%clk 0:01:41]}  Qf4+ {[%clk 0:01:36]} 22. Rd2 {[%clk 0:01:35]}  Kf7 {[%clk 0:00:35]} 23. Qg2 {[%clk 0:00:57]}  Kg8 {[%clk 0:00:27]} 24. d6 {[%clk 0:00:53]}  c6 {[%clk 0:00:27]} 25. Qh2 {[%clk 0:00:52]}  Kf7 {[%clk 0:00:26]} 26. Qg2 {[%clk 0:00:51]}  Kg8 {[%clk 0:00:27]} 27. Qh2 {[%clk 0:00:23]}  Kf7 {[%clk 0:00:27]} 28. Qe2 {[%clk 0:00:23]}  Kg8 {[%clk 0:00:25]} 29. Rg1 {[%clk 0:00:21]}  Bg4 {[%clk 0:00:22]} 30. Qg2 {[%clk 0:00:13]}  Bd7 {[%clk 0:00:13]} 31. Kb1 {[%clk 0:00:12]}  a4 {[%clk 0:00:12]} 32. a3 {[%clk 0:00:12]}  Rf8 {[%clk 0:00:12]} 33. Ka2 {[%clk 0:00:12]}  Be6 {[%clk 0:00:11]} 34. d7 {[%clk 0:00:10]}  Bxc4+ {[%clk 0:00:11]} 35. Ka1 {[%clk 0:00:10]}  Rd8 {[%clk 0:00:10]} 36. Qh2 {[%clk 0:00:09]}  Bb3 {[%clk 0:00:07]} 37. Rh1 {[%clk 0:00:09]}  Kf7 {[%clk 0:00:06]} 38. Nd6+ {[%clk 0:00:09]}  Ke7 {[%clk 0:00:06]} 39. Nc8+ {[%clk 0:00:10]}  Kf7 {[%clk 0:00:06]} 40. Nd6+ {[%clk 0:00:06]}  Ke7 {[%clk 0:00:06]} 41. Nde4 {[%clk 0:00:06]}  Kf7 {[%clk 0:00:05]} 42. Qh7 {[%clk 0:00:06]}  Be6 {[%clk 0:00:03]} 43. Nd6+ {[%clk 0:00:06]}  Kf6 {[%clk 0:00:03]} 44. Ne8+ {[%clk 0:00:06]}  Kg5 {[%clk 0:00:01]} 45. Qxg7 {[%clk 0:00:04]}  Qxg3 {[%clk 0:00:01]} 46. Qe7+ {[%clk 0:00:04]}  Kf5 {[%clk 0:00:01]} 47. Qxd8 {[%clk 0:00:03]}  Qf4 {[%clk 0:00:01]} 48. Ng7+ {[%clk 0:00:03]} 1-0


[Site "https://www.chess.com"]

[Event "Titled Tuesday Blitz November 15 Late 2022"]
[White "Jacobson, Brandon"]
[Black "Halvax, Georg"]
[WhiteFideId "30901561"]
[BlackFideId "1619543"]
[WhiteElo "2451"]
[BlackElo "2482"]
[Result "0-1"]
[Round "03"]
[TimeControl "180+1"]
[Date "2022.11.15"]
[WhiteClock "0:00:04"]
[BlackClock "0:00:11"]

1. e4 {[%clk 0:03:00]}  c5 {[%clk 0:02:59]} 2. Nf3 {[%clk 0:03:00]}  Nc6 {[%clk 0:03:00]} 3. Bb5 {[%clk 0:03:00]}  g6 {[%clk 0:03:00]} 4. O-O {[%clk 0:03:00]}  Bg7 {[%clk 0:03:01]} 5. Re1 {[%clk 0:02:58]}  Nf6 {[%clk 0:02:59]} 6. e5 {[%clk 0:02:58]}  Nd5 {[%clk 0:02:59]} 7. Nc3 {[%clk 0:02:57]}  Nc7 {[%clk 0:03:00]} 8. Bxc6 {[%clk 0:02:57]}  dxc6 {[%clk 0:03:01]} 9. Ne4 {[%clk 0:02:58]}  Ne6 {[%clk 0:03:01]} 10. d3 {[%clk 0:02:46]}  O-O {[%clk 0:03:01]} 11. Be3 {[%clk 0:02:38]}  b6 {[%clk 0:03:02]} 12. Qd2 {[%clk 0:02:37]}  Nd4 {[%clk 0:03:02]} 13. Nxd4 {[%clk 0:02:34]}  cxd4 {[%clk 0:03:03]} 14. Bf4 {[%clk 0:02:33]}  Qd5 {[%clk 0:03:02]} 15. Ng3 {[%clk 0:02:31]}  c5 {[%clk 0:02:57]} 16. b3 {[%clk 0:02:30]}  Bb7 {[%clk 0:02:47]} 17. f3 {[%clk 0:02:29]}  Bc8 {[%clk 0:02:38]} 18. Re4 {[%clk 0:02:13]}  Be6 {[%clk 0:02:36]} 19. Rae1 {[%clk 0:02:12]}  a5 {[%clk 0:02:35]} 20. Bh6 {[%clk 0:02:11]}  Rfc8 {[%clk 0:02:11]} 21. Bxg7 {[%clk 0:02:00]}  Kxg7 {[%clk 0:02:12]} 22. Rh4 {[%clk 0:02:00]}  Kf8 {[%clk 0:02:01]} 23. Rxh7 {[%clk 0:01:39]}  Ke8 {[%clk 0:02:01]} 24. a4 {[%clk 0:01:39]}  Kd7 {[%clk 0:01:59]} 25. Qh6 {[%clk 0:01:26]}  Rcb8 {[%clk 0:01:35]} 26. Ne4 {[%clk 0:01:08]}  Bf5 {[%clk 0:01:28]} 27. Ng5 {[%clk 0:01:00]}  Be6 {[%clk 0:01:24]} 28. Rxf7 {[%clk 0:00:31]}  Bxf7 {[%clk 0:01:20]} 29. e6+ {[%clk 0:00:30]}  Bxe6 {[%clk 0:01:21]} 30. Nxe6 {[%clk 0:00:29]}  Qf5 {[%clk 0:01:04]} 31. Qh4 {[%clk 0:00:25]}  Rh8 {[%clk 0:00:46]} 32. Qg3 {[%clk 0:00:25]}  Rac8 {[%clk 0:00:45]} 33. Re5 {[%clk 0:00:20]}  Qf6 {[%clk 0:00:37]} 34. Ng5 {[%clk 0:00:15]}  Rc6 {[%clk 0:00:28]} 35. Qg4+ {[%clk 0:00:10]}  Kc7 {[%clk 0:00:24]} 36. Qe4 {[%clk 0:00:09]}  Kd7 {[%clk 0:00:12]} 37. Ne6 {[%clk 0:00:05]}  Rxe6 {[%clk 0:00:11]} 38. Qb7+ {[%clk 0:00:04]}  Ke8 {[%clk 0:00:11]} 39. Rxe6 {[%clk 0:00:04]}  Qxe6 {[%clk 0:00:11]} 0-1


[Site "https://www.chess.com"]

[Event "Titled Tuesday Blitz November 15 Late 2022"]
[White "Jiang, Andrew"]
[Black "Goroshkov, Maksym"]
[WhiteFideId "30953510"]
[BlackFideId "14142716"]
[WhiteElo "1868"]
[BlackElo "2257"]
[Result "1/2-1/2"]
[Round "03"]
[TimeControl "180+1"]
[Date "2022.11.16"]
[WhiteClock "0:00:21"]
[BlackClock "0:00:17"]

1. e4 {[%clk 0:03:00]}  e5 {[%clk 0:02:59]} 2. Nf3 {[%clk 0:03:00]}  d6 {[%clk 0:03:00]} 3. d4 {[%clk 0:03:00]}  Bg4 {[%clk 0:03:00]} 4. dxe5 {[%clk 0:03:00]}  Nd7 {[%clk 0:03:01]} 5. exd6 {[%clk 0:02:59]}  Bxd6 {[%clk 0:03:02]} 6. h3 {[%clk 0:03:00]}  Bh5 {[%clk 0:03:01]} 7. Be2 {[%clk 0:02:57]}  Ngf6 {[%clk 0:03:01]} 8. Bg5 {[%clk 0:02:57]}  Qe7 {[%clk 0:03:01]} 9. Nc3 {[%clk 0:02:55]}  O-O-O {[%clk 0:03:01]} 10. Nd4 {[%clk 0:02:43]}  Bxe2 {[%clk 0:02:58]} 11. Qxe2 {[%clk 0:02:44]}  Be5 {[%clk 0:02:57]} 12. O-O-O {[%clk 0:02:29]}  Nc5 {[%clk 0:02:55]} 13. Nf5 {[%clk 0:02:24]}  Qe6 {[%clk 0:02:53]} 14. Rxd8+ {[%clk 0:02:12]}  Rxd8 {[%clk 0:02:51]} 15. Nxg7 {[%clk 0:02:13]}  Qc6 {[%clk 0:02:47]} 16. Nd5 {[%clk 0:02:08]}  Nxd5 {[%clk 0:02:34]} 17. Bxd8 {[%clk 0:02:06]}  Nb4 {[%clk 0:02:09]} 18. Kb1 {[%clk 0:01:48]}  Na4 {[%clk 0:01:55]} 19. Nf5 {[%clk 0:01:44]}  Nc3+ {[%clk 0:01:45]} 20. bxc3 {[%clk 0:01:18]}  Qxc3 {[%clk 0:01:46]} 21. Kc1 {[%clk 0:01:15]}  Nxa2+ {[%clk 0:01:04]} 22. Kd1 {[%clk 0:01:15]}  Qa1+ {[%clk 0:01:00]} 23. Kd2 {[%clk 0:01:15]}  Qxh1 {[%clk 0:01:00]} 24. Qg4 {[%clk 0:00:56]}  Qc1+ {[%clk 0:00:54]} 25. Ke2 {[%clk 0:00:43]}  Qxc2+ {[%clk 0:00:53]} 26. Kf1 {[%clk 0:00:43]}  Qb1+ {[%clk 0:00:43]} 27. Ke2 {[%clk 0:00:42]}  Nc1+ {[%clk 0:00:33]} 28. Kd2 {[%clk 0:00:39]}  Nb3+ {[%clk 0:00:25]} 29. Ke2 {[%clk 0:00:39]}  Qc2+ {[%clk 0:00:22]} 30. Ke1 {[%clk 0:00:36]}  Qd2+ {[%clk 0:00:19]} 31. Kf1 {[%clk 0:00:35]}  Qc1+ {[%clk 0:00:19]} 32. Ke2 {[%clk 0:00:36]}  Qc2+ {[%clk 0:00:19]} 33. Kf1 {[%clk 0:00:25]}  Qb1+ {[%clk 0:00:19]} 34. Ke2 {[%clk 0:00:25]}  Nc1+ {[%clk 0:00:20]} 35. Kd2 {[%clk 0:00:25]}  Nb3+ {[%clk 0:00:17]} 36. Ke2 {[%clk 0:00:21]} 1/2-1/2


[Site "https://www.chess.com"]

[Event "Titled Tuesday Blitz November 15 Late 2022"]
[White "Jones, Gawain C B"]
[Black "Tanenbaum, Zachary"]
[WhiteFideId "409561"]
[BlackFideId "2060850"]
[WhiteElo "2657"]
[BlackElo "2175"]
[Result "1-0"]
[Round "03"]
[TimeControl "180+1"]
[Date "2022.11.15"]
[WhiteClock "0:00:02"]
[BlackClock "0:00:03"]

1. Nf3 {[%clk 0:02:55]}  d5 {[%clk 0:02:59]} 2. g3 {[%clk 0:02:55]}  Nf6 {[%clk 0:02:59]} 3. Bg2 {[%clk 0:02:55]}  c6 {[%clk 0:03:00]} 4. O-O {[%clk 0:02:55]}  Bf5 {[%clk 0:02:59]} 5. c4 {[%clk 0:02:55]}  e6 {[%clk 0:02:59]} 6. Qb3 {[%clk 0:02:54]}  Qb6 {[%clk 0:02:55]} 7. d3 {[%clk 0:02:55]}  Nbd7 {[%clk 0:02:54]} 8. Be3 {[%clk 0:02:53]}  Qc7 {[%clk 0:02:52]} 9. cxd5 {[%clk 0:02:45]}  exd5 {[%clk 0:02:50]} 10. Nc3 {[%clk 0:02:42]}  Bc5 {[%clk 0:02:49]} 11. Bf4 {[%clk 0:02:27]}  Qb6 {[%clk 0:02:44]} 12. Qc2 {[%clk 0:02:24]}  Be7 {[%clk 0:02:37]} 13. Nh4 {[%clk 0:02:24]}  Bg4 {[%clk 0:02:28]} 14. h3 {[%clk 0:02:20]}  Be6 {[%clk 0:02:28]} 15. e4 {[%clk 0:02:17]}  dxe4 {[%clk 0:02:24]} 16. dxe4 {[%clk 0:02:17]}  Nh5 {[%clk 0:02:17]} 17. Be3 {[%clk 0:02:15]}  Qd8 {[%clk 0:02:06]} 18. Nf5 {[%clk 0:02:12]}  Bxf5 {[%clk 0:01:57]} 19. exf5 {[%clk 0:02:13]}  O-O {[%clk 0:01:56]} 20. Rad1 {[%clk 0:02:06]}  Nhf6 {[%clk 0:01:56]} 21. g4 {[%clk 0:01:59]}  h6 {[%clk 0:01:51]} 22. Rfe1 {[%clk 0:01:56]}  Re8 {[%clk 0:01:50]} 23. Bf4 {[%clk 0:01:51]}  Qa5 {[%clk 0:01:44]} 24. a3 {[%clk 0:01:36]}  Bf8 {[%clk 0:01:39]} 25. Qb3 {[%clk 0:01:09]}  Nc5 {[%clk 0:01:23]} 26. Qc4 {[%clk 0:01:08]}  Qb6 {[%clk 0:01:09]} 27. Be3 {[%clk 0:00:57]}  Qa6 {[%clk 0:01:03]} 28. Qxa6 {[%clk 0:00:57]}  Nxa6 {[%clk 0:01:04]} 29. b4 {[%clk 0:00:55]}  Nc7 {[%clk 0:00:57]} 30. Bd4 {[%clk 0:00:43]}  a5 {[%clk 0:00:48]} 31. bxa5 {[%clk 0:00:29]}  Bxa3 {[%clk 0:00:47]} 32. Rxe8+ {[%clk 0:00:27]}  Ncxe8 {[%clk 0:00:42]} 33. Bb6 {[%clk 0:00:25]}  Bb4 {[%clk 0:00:40]} 34. Ne2 {[%clk 0:00:19]}  Nd6 {[%clk 0:00:36]} 35. Rb1 {[%clk 0:00:07]}  Bxa5 {[%clk 0:00:29]} 36. Bc5 {[%clk 0:00:07]}  Nde4 {[%clk 0:00:24]} 37. Bd4 {[%clk 0:00:05]}  Rb8 {[%clk 0:00:17]} 38. Be5 {[%clk 0:00:05]}  Re8 {[%clk 0:00:17]} 39. Bxf6 {[%clk 0:00:05]}  Nxf6 {[%clk 0:00:17]} 40. Nd4 {[%clk 0:00:06]}  Re7 {[%clk 0:00:17]} 41. Kf1 {[%clk 0:00:04]}  c5 {[%clk 0:00:13]} 42. Nb5 {[%clk 0:00:04]}  b6 {[%clk 0:00:11]} 43. Nd6 {[%clk 0:00:04]}  Bb4 {[%clk 0:00:11]} 44. Bf3 {[%clk 0:00:03]}  Nd7 {[%clk 0:00:11]} 45. Ra1 {[%clk 0:00:03]}  Ne5 {[%clk 0:00:10]} 46. Be4 {[%clk 0:00:03]}  f6 {[%clk 0:00:07]} 47. Ra8+ {[%clk 0:00:02]}  Kh7 {[%clk 0:00:07]} 48. Bd5 {[%clk 0:00:03]}  h5 {[%clk 0:00:07]} 49. Be6 {[%clk 0:00:03]}  Kh6 {[%clk 0:00:04]} 50. f4 {[%clk 0:00:02]}  Nd3 {[%clk 0:00:03]} 51. Rh8# {[%clk 0:00:02]} 1-0


[Site "https://www.chess.com"]

[Event "Titled Tuesday Blitz November 15 Late 2022"]
[White "Kaplan, Avi Harrison"]
[Black "Goryachkina, Aleksandra"]
[WhiteFideId "30934559"]
[BlackFideId "4147103"]
[WhiteElo "1983"]
[BlackElo "2484"]
[Result "0-1"]
[Round "03"]
[TimeControl "180+1"]
[Date "2022.11.16"]
[WhiteClock "0:00:03"]
[BlackClock "0:00:07"]

1. a3 {[%clk 0:02:58]}  d5 {[%clk 0:02:56]} 2. Nf3 {[%clk 0:02:56]}  Bg4 {[%clk 0:02:54]} 3. Ne5 {[%clk 0:02:52]}  Bf5 {[%clk 0:02:52]} 4. e3 {[%clk 0:02:46]}  Nd7 {[%clk 0:02:51]} 5. Nxd7 {[%clk 0:02:42]}  Qxd7 {[%clk 0:02:51]} 6. b4 {[%clk 0:02:41]}  e6 {[%clk 0:02:48]} 7. Bb2 {[%clk 0:02:41]}  a5 {[%clk 0:02:46]} 8. Be2 {[%clk 0:02:33]}  Nf6 {[%clk 0:02:44]} 9. b5 {[%clk 0:02:32]}  Be7 {[%clk 0:02:41]} 10. O-O {[%clk 0:02:32]}  O-O {[%clk 0:02:41]} 11. c4 {[%clk 0:02:29]}  dxc4 {[%clk 0:02:33]} 12. Bxc4 {[%clk 0:02:30]}  Bd3 {[%clk 0:02:29]} 13. Qb3 {[%clk 0:02:20]}  Bxf1 {[%clk 0:02:24]} 14. Bxf1 {[%clk 0:02:06]}  Rfd8 {[%clk 0:02:21]} 15. Nc3 {[%clk 0:02:06]}  Qxd2 {[%clk 0:02:01]} 16. Rd1 {[%clk 0:00:47]}  a4 {[%clk 0:01:59]} 17. Qa2 {[%clk 0:00:40]}  Qc2 {[%clk 0:01:55]} 18. Rc1 {[%clk 0:00:31]}  Qf5 {[%clk 0:01:49]} 19. Ba1 {[%clk 0:00:25]}  Rd7 {[%clk 0:01:38]} 20. Ne2 {[%clk 0:00:25]}  Rad8 {[%clk 0:01:01]} 21. Nd4 {[%clk 0:00:25]}  Qh5 {[%clk 0:00:55]} 22. Bc4 {[%clk 0:00:20]}  Kh8 {[%clk 0:00:53]} 23. Be2 {[%clk 0:00:14]}  Qg6 {[%clk 0:00:50]} 24. h3 {[%clk 0:00:11]}  Nd5 {[%clk 0:00:47]} 25. Nf3 {[%clk 0:00:11]}  f6 {[%clk 0:00:40]} 26. Kh2 {[%clk 0:00:08]}  Bd6+ {[%clk 0:00:34]} 27. Kh1 {[%clk 0:00:09]}  Qf7 {[%clk 0:00:34]} 28. Bc4 {[%clk 0:00:07]}  c6 {[%clk 0:00:33]} 29. bxc6 {[%clk 0:00:07]}  bxc6 {[%clk 0:00:33]} 30. Nd4 {[%clk 0:00:06]}  Rc7 {[%clk 0:00:30]} 31. Bd3 {[%clk 0:00:05]}  e5 {[%clk 0:00:24]} 32. Nf3 {[%clk 0:00:04]}  Qe7 {[%clk 0:00:11]} 33. Bc4 {[%clk 0:00:04]}  Nb6 {[%clk 0:00:10]} 34. Be2 {[%clk 0:00:04]}  c5 {[%clk 0:00:09]} 35. Rb1 {[%clk 0:00:04]}  Rb8 {[%clk 0:00:08]} 36. Qc2 {[%clk 0:00:03]}  Rcc8 {[%clk 0:00:08]} 37. Rd1 {[%clk 0:00:03]}  c4 {[%clk 0:00:08]} 38. Qc3 {[%clk 0:00:02]}  Bxa3 {[%clk 0:00:07]} 39. Qe1 {[%clk 0:00:02]}  Bb4 {[%clk 0:00:07]} 40. Qf1 {[%clk 0:00:02]}  c3 {[%clk 0:00:08]} 41. Nh4 {[%clk 0:00:03]}  c2 {[%clk 0:00:07]} 42. Rc1 {[%clk 0:00:03]}  Ba3 {[%clk 0:00:08]} 43. Nf5 {[%clk 0:00:04]}  Qd7 {[%clk 0:00:07]} 44. Bg4 {[%clk 0:00:04]}  Bxc1 {[%clk 0:00:06]} 45. Qxc1 {[%clk 0:00:04]}  Qf7 {[%clk 0:00:04]} 46. Nd6 {[%clk 0:00:03]}  Qc7 {[%clk 0:00:04]} 47. Nxc8 {[%clk 0:00:03]}  Nxc8 {[%clk 0:00:04]} 48. Bb2 {[%clk 0:00:03]}  Rxb2 {[%clk 0:00:03]} 49. Qxb2 {[%clk 0:00:03]}  c1=Q+ {[%clk 0:00:04]} 50. Qxc1 {[%clk 0:00:04]}  Qxc1+ {[%clk 0:00:04]} 51. Kh2 {[%clk 0:00:04]}  a3 {[%clk 0:00:05]} 52. Bxc8 {[%clk 0:00:04]}  a2 {[%clk 0:00:06]} 53. Bg4 {[%clk 0:00:05]}  a1=Q {[%clk 0:00:06]} 54. e4 {[%clk 0:00:05]}  Qd2 {[%clk 0:00:06]} 55. Kg3 {[%clk 0:00:06]}  Qab2 {[%clk 0:00:06]} 56. f3 {[%clk 0:00:06]}  Qxg2+ {[%clk 0:00:07]} 57. Kh4 {[%clk 0:00:06]}  Qbd2 {[%clk 0:00:06]} 58. f4 {[%clk 0:00:06]}  g5+ {[%clk 0:00:06]} 59. Kh5 {[%clk 0:00:05]}  gxf4 {[%clk 0:00:06]} 60. h4 {[%clk 0:00:05]}  f3 {[%clk 0:00:06]} 61. Bh3 {[%clk 0:00:03]}  Qdg5+ {[%clk 0:00:06]} 62. hxg5 {[%clk 0:00:03]}  Qxg5# {[%clk 0:00:07]} 0-1


[Site "https://www.chess.com"]